fUST/lending_fUST_20250318
["ID","MTS","AMOUNT","RATE_DAILY","PERIOD"]
[356302129,1742233837186,-150.3,8.246e-05,2]
[356302130,1742233837195,-150.3,8.246e-05,2]
[356302131,1742233837206,-150.4797932,8.246e-05,2]
[356302132,1742233837217,-500.0,8.246e-05,2]
[356302133,1742233837229,-500.0,8.246e-05,2]
[356302134,1742233837240,-541.84166622,8.246e-05,2]
[356302135,1742233837250,-150.3,8.246e-05,2]
[356302136,1742233837259,-150.3,8.274e-05,2]
[356302137,1742233837271,-150.3,8.274e-05,2]
[356302138,1742233837282,-500.0,8.274e-05,2]
[356302139,1742233837292,-500.0,8.274e-05,2]
[356302140,1742233837302,-224.15974034,8.274e-05,2]
[356302141,1742233837313,-153.0,8.28e-05,2]
[356302142,1742233837324,-153.0,8.28e-05,2]
[356302143,1742233837337,-153.0,8.28e-05,2]
[356302144,1742233837348,-310.1297125,8.28e-05,2]
[356302145,1742233837362,-153.0,8.28e-05,2]
[356302146,1742233837371,-153.0,8.28e-05,2]
[356302147,1742233837381,-150.3,8.301e-05,2]
[356302148,1742233837391,-150.3,8.301e-05,2]
[356302149,1742233837401,-500.0,8.301e-05,2]
[356302150,1742233837410,-510.67668994,8.301e-05,2]
[356302151,1742233837421,-153.0,8.31e-05,2]
[356302152,1742233837430,-153.0,8.31e-05,2]
[356302153,1742233837439,-153.0,8.31e-05,2]
[356302154,1742233837449,-153.0,8.31e-05,2]
[356302155,1742233837459,-153.0,8.31e-05,2]
[356302156,1742233837469,-306.0,8.31e-05,2]
[356302157,1742233837479,-153.0,8.31e-05,2]
[356302158,1742233837488,-153.0,8.31e-05,2]
[356302159,1742233837498,-155.2767078,8.31e-05,2]
[356302160,1742233837508,-153.0,8.31e-05,2]
[356302161,1742233837517,-153.0,8.31e-05,2]
[356302162,1742233837527,-500.000001,8.318e-05,2]
[356302163,1742233837537,-153.0,8.32e-05,2]
[356302164,1742233837546,-160.0,8.321e-05,2]
[356302165,1742233837557,-160.0,8.321e-05,2]
[356302166,1742233837567,-833.89138366,8.321e-05,2]
[356302167,1742233837577,-417.81762827,8.321e-05,2]
[356302168,1742233837587,-160.0,8.321e-05,2]
[356302169,1742233837596,-7488.77220825,8.321e-05,2]
[356302183,1742233838612,-500.0,8.219e-05,2]
[356302184,1742233838623,-3749.21878398,8.321e-05,2]
[356302185,1742233838635,-1220.94720923,8.321e-05,2]
[356302186,1742233838645,-150.3,8.329e-05,2]
[356302187,1742233838654,-150.3,8.329e-05,2]
[356302188,1742233838664,-500.0,8.329e-05,2]
[356302189,1742233838674,-247.5,8.356e-05,2]
[356302190,1742233838683,-183.0,8.356e-05,2]
[356302191,1742233838693,-500.0,8.356e-05,2]
[356302192,1742233838703,-571.16183171,8.383e-05,2]
[356302193,1742233838713,-500.0,8.383e-05,2]
[356302194,1742233838722,-151.0,8.383e-05,2]
[356302196,1742233838731,-590.12,8.383e-05,2]
[356302197,1742233838741,-194.0,8.4e-05,2]
[356302198,1742233838750,-30419.80343419,8.408e-05,2]
[356302218,1742233840765,-1000.0,8.219e-05,2]
[356302252,1742233843755,-281.94,8.219e-05,2]
[356302253,1742233843764,-500.0,8.219e-05,2]
[356302254,1742233843774,-4794.18,8.219e-05,2]
[356302255,1742233843784,-6811.94783036,8.408e-05,2]
[356302256,1742233843794,-151.0,8.408e-05,2]
[356302257,1742233843804,-151.0,8.408e-05,2]
[356302258,1742233843815,-246.432238,8.408e-05,2]
[356302259,1742233843825,-246.432238,8.408e-05,2]
[356302260,1742233843834,-287.66940221,8.419e-05,2]
[356302261,1742233843844,-196.0,8.463e-05,2]
[356302262,1742233843854,-258.64323255,8.473e-05,2]
[356302263,1742233843863,-500.0,8.473e-05,2]
[356302264,1742233843873,-209.48258431,8.473e-05,2]
[356302265,1742233843883,-500.0,8.473e-05,2]
[356302266,1742233843892,-500.0,8.473e-05,2]
[356302267,1742233843902,-501.70936986,8.473e-05,2]
[356302268,1742233843913,-500.0,8.473e-05,2]
[356302269,1742233843923,-500.0,8.473e-05,2]
[356302271,1742233843933,-88.86366496,8.473e-05,2]
[356302272,1742233843945,-411.13633504,8.473e-05,2]
[356302273,1742233843955,-500.0,8.473e-05,2]
[356302274,1742233843965,-513.81120663,8.473e-05,2]
[356302275,1742233843975,-199.98532939,8.473e-05,2]
[356302276,1742233843988,-300.01467061,8.473e-05,2]
[356302277,1742233843998,-269.75970195,8.473e-05,2]
[356302278,1742233844008,-500.0,8.473e-05,2]
[356302279,1742233844018,-200.20744953,8.473e-05,2]
[356302280,1742233844028,-500.0,8.473e-05,2]
[356302281,1742233844037,-500.0,8.473e-05,2]
[356302282,1742233844048,-442.52065671,8.473e-05,2]
[356302283,1742233844060,-109.81102856,8.473e-05,2]
[356302284,1742233844069,-206.61397144,8.473e-05,2]
[356302322,1742235031857,-500.0,8.218e-05,2]
[356302324,1742235031867,-278.107955,8.218e-05,2]
[356302325,1742235031876,-497.26891811,8.218e-05,2]
[356302326,1742235031886,-300.0,8.218e-05,2]
[356302327,1742235031895,-500.0,8.219e-05,2]
[356302328,1742235031905,-500.0,8.219e-05,2]
[356302329,1742235031915,-500.0,8.219e-05,2]
[356302330,1742235031924,-500.0,8.219e-05,2]
[356302331,1742235031934,-500.0,8.219e-05,2]
[356302332,1742235031944,-500.0,8.219e-05,2]
[356302333,1742235031953,-500.0,8.219e-05,2]
[356302334,1742235031963,-500.0,8.219e-05,2]
[356302335,1742235031972,-503.5439522,8.219e-05,2]
[356302336,1742235031982,-500.0,8.219e-05,2]
[356302337,1742235031991,-500.0,8.219e-05,2]
[356302338,1742235032001,-500.0,8.219e-05,2]
[356302339,1742235032011,-500.0,8.219e-05,2]
[356302340,1742235032020,-500.0,8.219e-05,2]
[356302341,1742235032030,-500.0,8.219e-05,2]
[356302342,1742235032040,-500.0,8.219e-05,2]
[356302343,1742235032051,-500.0,8.219e-05,2]
[356302344,1742235032062,-500.0,8.219e-05,2]
[356302345,1742235032072,-500.0,8.219e-05,2]
[356302346,1742235032081,-500.0,8.219e-05,2]
[356302347,1742235032091,-500.0,8.219e-05,2]
[356302348,1742235032100,-500.0,8.219e-05,2]
[356302349,1742235032111,-500.0,8.219e-05,2]
[356302350,1742235032120,-511.97411298,8.219e-05,2]
[356302351,1742235032130,-211.32503426,8.219e-05,2]
[356302352,1742235032139,-500.0,8.219e-05,2]
[356302353,1742235032149,-500.0,8.219e-05,2]
[356302354,1742235032162,-517.59,8.219e-05,2]
[356302355,1742235032172,-506.98384101,8.219e-05,2]
[356302356,1742235032183,-500.0,8.219e-05,2]
[356302357,1742235032192,-500.0,8.219e-05,2]
[356302358,1742235032203,-500.0,8.219e-05,2]
[356302359,1742235032213,-500.0,8.219e-05,2]
[356302360,1742235032223,-500.0,8.219e-05,2]
[356302361,1742235032233,-500.0,8.219e-05,2]
[356302362,1742235032242,-500.0,8.219e-05,2]
[356302363,1742235032252,-500.0,8.219e-05,2]
[356302364,1742235032262,-500.0,8.219e-05,2]
[356302365,1742235032274,-500.0,8.219e-05,2]
[356302366,1742235032284,-500.0,8.219e-05,2]
[356302367,1742235032293,-500.0,8.219e-05,2]
[356302368,1742235032303,-500.0,8.219e-05,2]
[356302369,1742235032313,-803.68,8.219e-05,2]
[356302370,1742235032323,-500.0,8.219e-05,2]
[356302371,1742235032341,-500.0,8.219e-05,2]
[356302372,1742235032355,-686.4,8.219e-05,2]
[356302373,1742235032369,-515.83529741,8.219e-05,2]
[356302374,1742235032383,-5.97033896,8.219e-05,2]
[356302381,1742235037644,-494.02966104,8.219e-05,2]
[356302382,1742235037656,-500.0,8.219e-05,2]
[356302383,1742235037668,-84.07829396,8.219e-05,2]
[356302387,1742235039945,-719.49170604,8.219e-05,2]
[356302388,1742235039957,-500.0,8.219e-05,2]
[356302389,1742235039968,-712.608294,8.219e-05,2]
[356302442,1742235043042,-394.54582151,8.219e-05,2]
[356302454,1742235046031,-158.20588449,8.219e-05,2]
[356302455,1742235046041,-500.0,8.219e-05,2]
[356302456,1742235046051,-500.0,8.219e-05,2]
[356302457,1742235046060,-500.0,8.219e-05,2]
[356302458,1742235046070,-500.0,8.219e-05,2]
[356302459,1742235046080,-500.0,8.219e-05,2]
[356302460,1742235046090,-296.04706741,8.219e-05,2]
[356302461,1742235046099,-500.0,8.219e-05,2]
[356302462,1742235046109,-500.0,8.219e-05,2]
[356302463,1742235046118,-500.0,8.219e-05,2]
[356302464,1742235046127,-500.0,8.219e-05,2]
[356302465,1742235046137,-500.0,8.219e-05,2]
[356302466,1742235046146,-500.0,8.219e-05,2]
[356302467,1742235046155,-500.0,8.219e-05,2]
[356302468,1742235046164,-500.0,8.219e-05,2]
[356302469,1742235046174,-500.0,8.219e-05,2]
[356302470,1742235046183,-500.0,8.219e-05,2]
[356302471,1742235046192,-500.0,8.219e-05,2]
[356302472,1742235046201,-500.0,8.219e-05,2]
[356302473,1742235046211,-500.0,8.219e-05,2]
[356302474,1742235046220,-500.0,8.219e-05,2]
[356302475,1742235046230,-500.0,8.219e-05,2]
[356302476,1742235046239,-500.0,8.219e-05,2]
[356302477,1742235046249,-507.45944732,8.219e-05,2]
[356302478,1742235046258,-500.0,8.219e-05,2]
[356302479,1742235046268,-500.0,8.219e-05,2]
[356302480,1742235046277,-500.0,8.219e-05,2]
[356302481,1742235046286,-500.0,8.219e-05,2]
[356302482,1742235046296,-500.0,8.219e-05,2]
[356302483,1742235046305,-500.0,8.219e-05,2]
[356302484,1742235046314,-500.0,8.219e-05,2]
[356302485,1742235046323,-623.22,8.219e-05,2]
[356302486,1742235046333,-500.0,8.219e-05,2]
[356302487,1742235046343,-500.0,8.219e-05,2]
[356302488,1742235046353,-500.0,8.219e-05,2]
[356302489,1742235046364,-764.96,8.219e-05,2]
[356302490,1742235046373,-500.0,8.219e-05,2]
[356302491,1742235046383,-500.0,8.219e-05,2]
[356302492,1742235046393,-500.0,8.219e-05,2]
[356302493,1742235046402,-500.0,8.219e-05,2]
[356302494,1742235046412,-500.0,8.219e-05,2]
[356302495,1742235046422,-500.0,8.219e-05,2]
[356302496,1742235046431,-500.0,8.219e-05,2]
[356302497,1742235046441,-500.0,8.219e-05,2]
[356302498,1742235046451,-223.67133154,8.219e-05,2]
[356302520,1742236232059,-300.0,8.118e-05,2]
[356302521,1742236232070,-321.83895774,8.119e-05,2]
[356302561,1742236243134,-16000.0,8.119e-05,2]
[356302616,1742236246098,-463.3,8.119e-05,2]
[356302617,1742236246154,-2623.08358199,8.119e-05,2]
[356302618,1742236246168,-7081.66590924,8.119e-05,2]
[356302619,1742236246178,-500.0,8.218e-05,2]
[356302620,1742236246189,-500.0,8.218e-05,2]
[356302621,1742236246198,-400.05544555,8.218e-05,2]
[356302679,1742237432416,-544.59825588,8.119e-05,2]
[356302680,1742237432426,-443.3887601,8.12e-05,2]
[356302681,1742237432436,-300.0,8.217e-05,2]
[356302682,1742237432449,-99.94455445,8.218e-05,2]
[356302683,1742237432459,-500.0,8.218e-05,2]
[356302684,1742237432468,-500.0,8.218e-05,2]
[356302685,1742237432477,-389.8074723,8.218e-05,2]
[356302686,1742237432487,-222.64576924,8.218e-05,2]
[356302687,1742237432497,-500.0,8.218e-05,2]
[356302688,1742237432506,-500.0,8.218e-05,2]
[356302689,1742237432517,-500.0,8.218e-05,2]
[356302690,1742237432527,-359.44507522,8.218e-05,2]
[356302691,1742237432537,-500.0,8.218e-05,2]
[356302692,1742237432546,-192.47911926,8.218e-05,2]
[356302693,1742237432556,-214.47654693,8.218e-05,2]
[356302694,1742237432565,-500.0,8.218e-05,2]
[356302695,1742237432576,-500.0,8.218e-05,2]
[356302696,1742237432585,-500.0,8.218e-05,2]
[356302697,1742237432595,-500.0,8.218e-05,2]
[356302698,1742237432605,-500.0,8.218e-05,2]
[356302699,1742237432614,-500.0,8.218e-05,2]
[356302700,1742237432624,-500.0,8.218e-05,2]
[356302701,1742237432634,-500.0,8.218e-05,2]
[356302702,1742237432643,-500.0,8.218e-05,2]
[356302703,1742237432653,-500.0,8.218e-05,2]
[356302704,1742237432664,-500.0,8.218e-05,2]
[356302705,1742237432673,-151.0,8.219e-05,2]
[356302706,1742237432683,-500.0,8.219e-05,2]
[356302707,1742237432692,-500.0,8.219e-05,2]
[356302708,1742237432702,-500.0,8.219e-05,2]
[356302709,1742237432712,-500.0,8.219e-05,2]
[356302710,1742237432721,-500.0,8.219e-05,2]
[356302711,1742237432731,-500.0,8.219e-05,2]
[356302712,1742237432741,-500.0,8.219e-05,2]
[356302713,1742237432750,-500.0,8.219e-05,2]
[356302714,1742237432760,-500.0,8.219e-05,2]
[356302715,1742237432770,-603.24889442,8.219e-05,2]
[356302716,1742237432779,-500.0,8.219e-05,2]
[356302717,1742237432789,-500.0,8.219e-05,2]
[356302718,1742237432798,-324.50975552,8.219e-05,2]
[356302719,1742237432808,-500.0,8.219e-05,2]
[356302720,1742237432818,-500.0,8.219e-05,2]
[356302721,1742237432828,-500.0,8.219e-05,2]
[356302722,1742237432837,-500.0,8.219e-05,2]
[356302723,1742237432847,-500.0,8.219e-05,2]
[356302724,1742237432857,-500.0,8.219e-05,2]
[356302725,1742237432867,-500.0,8.219e-05,2]
[356302726,1742237432877,-500.0,8.219e-05,2]
[356302727,1742237432887,-500.0,8.219e-05,2]
[356302728,1742237432896,-500.0,8.219e-05,2]
[356302729,1742237432905,-500.0,8.219e-05,2]
[356302730,1742237432915,-500.0,8.219e-05,2]
[356302731,1742237432925,-500.0,8.219e-05,2]
[356302732,1742237432935,-500.0,8.219e-05,2]
[356302733,1742237432945,-538.0099256,8.219e-05,2]
[356302734,1742237432954,-285.28465284,8.219e-05,2]
[356302735,1742237432964,-500.0,8.219e-05,2]
[356302736,1742237432974,-500.0,8.219e-05,2]
[356302737,1742237432983,-500.0,8.219e-05,2]
[356302738,1742237432994,-500.0,8.219e-05,2]
[356302739,1742237433004,-175.42870797,8.219e-05,2]
[356302742,1742237438107,-324.57129203,8.219e-05,2]
[356302743,1742237438117,-500.0,8.219e-05,2]
[356302744,1742237438127,-500.0,8.219e-05,2]
[356302745,1742237438137,-500.0,8.219e-05,2]
[356302746,1742237438146,-500.0,8.219e-05,2]
[356302747,1742237438156,-500.0,8.219e-05,2]
[356302748,1742237438165,-500.0,8.219e-05,2]
[356302749,1742237438174,-500.0,8.219e-05,2]
[356302750,1742237438184,-186.50499237,8.219e-05,2]
[356302751,1742237438193,-500.0,8.219e-05,2]
[356302752,1742237438202,-500.0,8.219e-05,2]
[356302753,1742237438212,-159.44032586,8.219e-05,2]
[356302754,1742237438233,-340.55967414,8.219e-05,2]
[356302755,1742237438242,-500.0,8.219e-05,2]
[356302756,1742237438252,-159.44032586,8.219e-05,2]
[356302765,1742237440368,-340.55967414,8.219e-05,2]
[356302766,1742237440378,-500.0,8.219e-05,2]
[356302767,1742237440388,-261.09751453,8.219e-05,2]
[356302768,1742237440398,-500.0,8.219e-05,2]
[356302769,1742237440407,-500.0,8.219e-05,2]
[356302770,1742237440417,-500.0,8.219e-05,2]
[356302771,1742237440427,-500.0,8.219e-05,2]
[356302772,1742237440436,-500.0,8.219e-05,2]
[356302773,1742237440448,-500.0,8.219e-05,2]
[356302774,1742237440458,-688.55,8.219e-05,2]
[356302775,1742237440467,-500.0,8.219e-05,2]
[356302776,1742237440477,-804.11,8.219e-05,2]
[356302777,1742237440487,-500.0,8.219e-05,2]
[356302778,1742237440498,-500.0,8.219e-05,2]
[356302779,1742237440508,-500.0,8.219e-05,2]
[356302780,1742237440517,-500.0,8.219e-05,2]
[356302781,1742237440529,-500.0,8.219e-05,2]
[356302782,1742237440539,-500.0,8.219e-05,2]
[356302783,1742237440549,-373.39625312,8.219e-05,2]
[356302784,1742237440559,-500.0,8.219e-05,2]
[356302785,1742237440569,-500.0,8.219e-05,2]
[356302786,1742237440579,-500.0,8.219e-05,2]
[356302787,1742237440589,-500.0,8.219e-05,2]
[356302788,1742237440598,-500.0,8.219e-05,2]
[356302789,1742237440608,-500.0,8.219e-05,2]
[356302790,1742237440618,-500.0,8.219e-05,2]
[356302791,1742237440627,-500.0,8.219e-05,2]
[356302792,1742237440637,-500.0,8.219e-05,2]
[356302793,1742237440647,-500.0,8.219e-05,2]
[356302794,1742237440657,-500.0,8.219e-05,2]
[356302795,1742237440666,-530.72688968,8.219e-05,2]
[356302796,1742237440676,-500.0,8.219e-05,2]
[356302797,1742237440686,-500.0,8.219e-05,2]
[356302798,1742237440695,-500.0,8.219e-05,2]
[356302799,1742237440705,-500.0,8.219e-05,2]
[356302800,1742237440715,-500.0,8.219e-05,2]
[356302801,1742237440725,-500.0,8.219e-05,2]
[356302802,1742237440734,-626.89,8.219e-05,2]
[356302803,1742237440745,-500.0,8.219e-05,2]
[356302804,1742237440755,-500.0,8.219e-05,2]
[356302805,1742237440765,-768.85,8.219e-05,2]
[356302806,1742237440775,-500.0,8.219e-05,2]
[356302807,1742237440785,-500.0,8.219e-05,2]
[356302808,1742237440795,-500.0,8.219e-05,2]
[356302809,1742237440804,-500.0,8.219e-05,2]
[356302810,1742237440814,-500.0,8.219e-05,2]
[356302811,1742237440823,-500.0,8.219e-05,2]
[356302812,1742237440832,-500.0,8.219e-05,2]
[356302813,1742237440842,-500.0,8.219e-05,2]
[356302814,1742237440852,-348.76386205,8.219e-05,2]
[356302815,1742237440862,-500.0,8.219e-05,2]
[356302816,1742237440871,-500.0,8.219e-05,2]
[356302817,1742237440881,-500.0,8.219e-05,2]
[356302818,1742237440891,-500.0,8.219e-05,2]
[356302819,1742237440901,-500.0,8.219e-05,2]
[356302820,1742237440911,-500.0,8.219e-05,2]
[356302821,1742237440921,-500.0,8.219e-05,2]
[356302822,1742237440931,-500.0,8.219e-05,2]
[356302823,1742237440941,-500.0,8.219e-05,2]
[356302824,1742237440951,-500.0,8.219e-05,2]
[356302825,1742237440960,-500.0,8.219e-05,2]
[356302826,1742237440970,-500.0,8.219e-05,2]
[356302827,1742237440980,-500.0,8.219e-05,2]
[356302828,1742237440991,-194.41380069,8.219e-05,2]
[356302829,1742237441003,-500.0,8.219e-05,2]
[356302830,1742237441013,-500.0,8.219e-05,2]
[356302831,1742237441022,-500.0,8.219e-05,2]
[356302832,1742237441031,-500.0,8.219e-05,2]
[356302833,1742237441041,-500.0,8.219e-05,2]
[356302834,1742237441051,-500.0,8.219e-05,2]
[356302835,1742237441061,-500.0,8.219e-05,2]
[356302836,1742237441071,-500.0,8.219e-05,2]
[356302837,1742237441081,-500.0,8.219e-05,2]
[356302838,1742237441091,-500.0,8.219e-05,2]
[356302839,1742237441100,-500.0,8.219e-05,2]
[356302840,1742237441110,-500.0,8.219e-05,2]
[356302841,1742237441120,-500.0,8.219e-05,2]
[356302842,1742237441129,-500.0,8.219e-05,2]
[356302843,1742237441139,-500.0,8.219e-05,2]
[356302844,1742237441148,-500.0,8.219e-05,2]
[356302845,1742237441158,-500.0,8.219e-05,2]
[356302846,1742237441168,-511.1047584,8.219e-05,2]
[356302847,1742237441178,-500.0,8.219e-05,2]
[356302848,1742237441187,-500.0,8.219e-05,2]
[356302849,1742237441197,-3420.14,8.219e-05,2]
[356302850,1742237441206,-163.61664619,8.219e-05,2]
[356302851,1742237441216,-500.0,8.219e-05,2]
[356302852,1742237441226,-500.0,8.219e-05,2]
[356302853,1742237441236,-500.0,8.219e-05,2]
[356302854,1742237441245,-500.0,8.219e-05,2]
[356302855,1742237441255,-500.0,8.219e-05,2]
[356302856,1742237441265,-444.62473201,8.219e-05,2]
[356302857,1742237441275,-500.0,8.219e-05,2]
[356302858,1742237441285,-767.6,8.219e-05,2]
[356302859,1742237441294,-500.0,8.219e-05,2]
[356302860,1742237441304,-500.0,8.219e-05,2]
[356302861,1742237441314,-500.0,8.219e-05,2]
[356302862,1742237441325,-500.0,8.219e-05,2]
[356302863,1742237441334,-652.12,8.219e-05,2]
[356302864,1742237441343,-685.35,8.219e-05,2]
[356302865,1742237441352,-500.0,8.219e-05,2]
[356302866,1742237441362,-500.0,8.219e-05,2]
[356302867,1742237441371,-500.0,8.219e-05,2]
[356302868,1742237441381,-500.0,8.219e-05,2]
[356302869,1742237441391,-500.0,8.219e-05,2]
[356302870,1742237441401,-632.97097094,8.219e-05,2]
[356302871,1742237441411,-6759.11,8.219e-05,2]
[356302872,1742237441420,-500.0,8.219e-05,2]
[356302873,1742237441430,-500.0,8.219e-05,2]
[356302874,1742237441627,-1461.73,8.219e-05,2]
[356302875,1742237441637,-500.0,8.219e-05,2]
[356302876,1742237441647,-500.0,8.219e-05,2]
[356302877,1742237441658,-500.0,8.219e-05,2]
[356302878,1742237441667,-500.0,8.219e-05,2]
[356302879,1742237441677,-500.0,8.219e-05,2]
[356302880,1742237441687,-1134.06757904,8.219e-05,2]
[356302920,1742237443229,-2827.19242096,8.219e-05,2]
[356302921,1742237443239,-500.0,8.219e-05,2]
[356302922,1742237443248,-46.39351678,8.219e-05,2]
[356302933,1742237446198,-453.60648322,8.219e-05,2]
[356302934,1742237446208,-4243.68,8.219e-05,2]
[356302935,1742237446218,-1727.1939796,8.219e-05,2]
[356302936,1742237446307,-1178.7360204,8.219e-05,2]
[356302937,1742237446316,-127.77850891,8.219e-05,2]
[356302987,1742238632442,-300.0,8.117e-05,2]
[356302989,1742238632452,-500.0,8.118e-05,2]
[356302991,1742238632462,-67.83,8.118e-05,2]
[356302994,1742238632473,-432.17,8.118e-05,2]
[356302996,1742238632486,-500.0,8.118e-05,2]
[356302998,1742238632500,-500.0,8.118e-05,2]
[356303000,1742238632510,-500.0,8.118e-05,2]
[356303002,1742238632519,-500.0,8.118e-05,2]
[356303004,1742238632529,-159.94098688,8.118e-05,2]
[356303032,1742238638169,-158.91926037,8.118e-05,2]
[356303033,1742238638179,-170.76350499,8.119e-05,2]
[356303034,1742238638191,-991.16467886,8.119e-05,2]
[356303035,1742238638203,-20157.44980035,8.119e-05,2]
[356303036,1742238638216,-777.65284043,8.119e-05,2]
[356303037,1742238638227,-677.41019514,8.119e-05,2]
[356303038,1742238638243,-12107.56374568,8.119e-05,2]
[356303039,1742238638255,-23226.46072575,8.119e-05,2]
[356303040,1742238638265,-500.0,8.219e-05,2]
[356303041,1742238638276,-151.0,8.219e-05,2]
[356303043,1742238638286,-151.0,8.219e-05,2]
[356303045,1742238638296,-151.0,8.219e-05,2]
[356303046,1742238638306,-151.0,8.219e-05,2]
[356303047,1742238638316,-159.457894,8.219e-05,2]
[356303048,1742238638326,-524.769595,8.219e-05,2]
[356303049,1742238638337,-151.0,8.219e-05,2]
[356303050,1742238638347,-500.0,8.219e-05,2]
[356303051,1742238638357,-500.0,8.219e-05,2]
[356303052,1742238638367,-500.0,8.219e-05,2]
[356303053,1742238638377,-500.0,8.219e-05,2]
[356303054,1742238638387,-500.0,8.219e-05,2]
[356303055,1742238638397,-500.0,8.219e-05,2]
[356303056,1742238638407,-500.0,8.219e-05,2]
[356303057,1742238638417,-500.0,8.219e-05,2]
[356303058,1742238638427,-504.03689809,8.219e-05,2]
[356303059,1742238638437,-500.0,8.219e-05,2]
[356303060,1742238638447,-500.0,8.219e-05,2]
[356303061,1742238638461,-500.0,8.219e-05,2]
[356303062,1742238638472,-500.0,8.219e-05,2]
[356303063,1742238638482,-500.0,8.219e-05,2]
[356303064,1742238638492,-500.0,8.219e-05,2]
[356303065,1742238638503,-829.43,8.219e-05,2]
[356303066,1742238638515,-500.0,8.219e-05,2]
[356303067,1742238638525,-689.33,8.219e-05,2]
[356303068,1742238638536,-500.0,8.219e-05,2]
[356303069,1742238638547,-803.21,8.219e-05,2]
[356303070,1742238638556,-500.0,8.219e-05,2]
[356303071,1742238638566,-500.0,8.219e-05,2]
[356303072,1742238638576,-500.0,8.219e-05,2]
[356303073,1742238638586,-500.0,8.219e-05,2]
[356303074,1742238638596,-500.0,8.219e-05,2]
[356303075,1742238638606,-500.0,8.219e-05,2]
[356303076,1742238638616,-1311.88,8.219e-05,2]
[356303077,1742238638626,-500.0,8.219e-05,2]
[356303078,1742238638636,-500.0,8.219e-05,2]
[356303079,1742238638646,-500.0,8.219e-05,2]
[356303080,1742238638657,-500.0,8.219e-05,2]
[356303081,1742238638667,-500.0,8.219e-05,2]
[356303082,1742238638677,-500.0,8.219e-05,2]
[356303083,1742238638687,-506.76,8.219e-05,2]
[356303084,1742238638697,-500.0,8.219e-05,2]
[356303085,1742238638707,-500.0,8.219e-05,2]
[356303086,1742238638717,-500.0,8.219e-05,2]
[356303087,1742238638727,-500.0,8.219e-05,2]
[356303088,1742238638737,-206.03719499,8.219e-05,2]
[356303089,1742238638751,-293.96280501,8.219e-05,2]
[356303090,1742238638761,-500.0,8.219e-05,2]
[356303091,1742238638772,-500.0,8.219e-05,2]
[356303092,1742238638782,-500.0,8.219e-05,2]
[356303093,1742238638792,-500.0,8.219e-05,2]
[356303094,1742238638801,-648.40624607,8.219e-05,2]
[356303095,1742238638811,-500.0,8.219e-05,2]
[356303096,1742238638822,-500.0,8.219e-05,2]
[356303097,1742238638831,-500.0,8.219e-05,2]
[356303098,1742238638841,-500.0,8.219e-05,2]
[356303099,1742238638851,-629.17,8.219e-05,2]
[356303100,1742238638861,-771.09,8.219e-05,2]
[356303101,1742238638871,-500.0,8.219e-05,2]
[356303102,1742238638884,-500.0,8.219e-05,2]
[356303103,1742238638895,-247.02028132,8.219e-05,2]
[356303104,1742238638905,-500.0,8.219e-05,2]
[356303105,1742238638915,-500.0,8.219e-05,2]
[356303106,1742238638926,-500.0,8.219e-05,2]
[356303107,1742238638936,-500.0,8.219e-05,2]
[356303108,1742238638946,-500.0,8.219e-05,2]
[356303109,1742238638958,-500.0,8.219e-05,2]
[356303110,1742238638969,-500.0,8.219e-05,2]
[356303111,1742238638979,-500.0,8.219e-05,2]
[356303112,1742238638989,-500.0,8.219e-05,2]
[356303113,1742238638999,-500.0,8.219e-05,2]
[356303114,1742238639009,-500.0,8.219e-05,2]
[356303115,1742238639020,-500.0,8.219e-05,2]
[356303116,1742238639030,-500.0,8.219e-05,2]
[356303117,1742238639040,-500.0,8.219e-05,2]
[356303118,1742238639049,-288.64443983,8.219e-05,2]
[356303119,1742238639059,-500.0,8.219e-05,2]
[356303120,1742238639070,-500.0,8.219e-05,2]
[356303121,1742238639080,-500.0,8.219e-05,2]
[356303122,1742238639090,-500.0,8.219e-05,2]